Cogmind - Beta 15 *** ADVENTURER MODE // 2025.08.06 @ 07:12:33 Player: LegoMDS Result: Destroyed by as-68014 with Assembled F-torch Performance ------------- Evolutions (0) 0 Regions Visited (2) 400 Robots Destroyed (22) 110 Value Destroyed (562) 562 Prototype IDs (5) 100 Alien Tech Used (0) 0 Bonus (0) 0 TOTAL SCORE: 1172 Bonus ------- None Cogmind --------- Core Integrity 0/250 Matter 259/300 Energy 73/100 System Corruption 4% Temperature Warning (331) Movement Core (400) Ox7 Location -10/Mines Parts ------- > --- POWER (1) -------- (None) > --- PROPULSION (2) --- (None) > --- UTILITY (2) ------ Large Storage Unit Core Shielding > --- WEAPON (2) ------- Assault Rifle > --- INVENTORY (15) --- Ion Engine Subdweller Power Source Light Nuclear Core Improved Heat Sink Datajack Mining Laser Peak State ------------ > --- POWER ------------ Light Nuclear Core > --- PROPULSION ------- Light Treads Light Treads > --- UTILITY ---------- Large Storage Unit Core Shielding > --- WEAPON ----------- Particle Gun Assault Rifle > --- INVENTORY -------- Ion Engine Light Ion Engine Light Nuclear Core Improved Heat Sink Small Laser Assault Rifle Light Cannon Datajack [Rating: 11] Favorites ----------- Power Light Nuclear Core Engine Light Ion Engine Power Core Light Nuclear Core Propulsion Light Treads Treads Light Treads Leg Aluminum Leg Utility Small Storage Unit Storage Small Storage Unit Protection Core Shielding Weapon Assault Rifle Energy Gun Small Laser Ballistic Gun Assault Rifle Ballistic Cannon Light Cannon Build | -11 -10 -10 ------- Run | Yrd Mat Min Slots Evolved . | . . . Power . | . . . Propulsion . | . . . Utility . | . . . Weapon . | . . . Parts Attached 17 | 6 10 1 Power 4 | 1 3 . Engine 2 | 1 1 . Core 2 | . 2 . Reactor . | . . . Propulsion 4 | 2 2 . Treads 2 | 2 . . Leg 2 | . 2 . Wheel . | . . . Hover . | . . . Flight . | . . . Utility 3 | 1 2 . Device . | . . . Storage 2 | 1 1 . Processor . | . . . Hackware . | . . . Protection 1 | . 1 . Artifact . | . . . Weapon 6 | 2 3 1 Energy Gun 3 | 1 2 . Energy Cannon . | . . . Ballistic Gun 2 | 1 . 1 Ballistic Cannon 1 | . 1 . Launcher . | . . . Special Weapon . | . . . Impact Weapon . | . . . Slashing Weapon . | . . . Piercing Weapon . | . . . Special Melee Weapon . | . . . Unidentified Prototypes . | . . . Parts Lost 7 | . 2 5 Power 1 | . . 1 Propulsion 3 | . 1 2 Utility 1 | . . 1 Weapon 2 | . 1 1 Highest Loss Streak 5 | . 2 5 To Critical Strikes . | . . . Average Backups 4 | 2 4 7 Power 1 | . 1 3 Propulsion . | . . . Utility 1 | . 1 1 Weapon 1 | . 1 1 Tool/Special . | . . . Unused Backups 6 | . 1 5 Power 3 | . 1 2 Propulsion . | . . . Utility 1 | . . 1 Weapon 1 | . . 1 Tool/Special 1 | . . 1 Average Slot Usage (%) 90 | . 90 94 Engine 3 | . 3 . Core 10 | . 10 14 Treads 21 | . 23 . Leg 5 | . 3 24 Storage 14 | . 14 14 Protection 6 | . 6 12 Energy Gun 14 | . 14 14 Ballistic Gun 10 | . 10 . Ballistic Cannon 3 | . 3 14 Peak Build Rating 11 | 6 11 11 Average Rating 8 | 3 8 10 On Entrance 5 | . 6 11 Naked Turns . | . . . Heaviest Build 32 | 11 32 32 Greatest Support 40 | 40 40 20 Greatest Overweight (x) 1 | . 1 1 Average Overweight (x) . | . . 1 Largest Inventory Capacity 15 | 8 15 15 Average Capacity 11 | 7 11 15 Most Carried 8 | 4 8 8 Average Carried 4 | 1 4 7 Final Capacity 15 | 8 15 15 Final Carried 8 | 2 8 6 Class Distribution -------------------- 83% | Mutant 16% | Scavenger-Mutant Dominant Class ---------------- Mutant | -10/Materials Scavenger-Mutant | -10/Mines Resources | -11 -10 -10 ----------- Run | Yrd Mat Min Matter Collected 551 | 217 334 . Remotely . | . . . Salvage Created 626 | . 583 43 Parts 37 | . 35 2 Haulers Intercepted 2 | . 2 . Recyclers Shooed . | . . . Parts Field Recycled . | . . . Retrieved Matter . | . . . Parts Self-Destructed . | . . . Prevented . | . . . Kills | -11 -10 -10 ------- Run | Yrd Mat Min Combat Hostiles Destroyed 19 | . 16 3 Guns 16 | . 14 2 Cannons 2 | . 1 1 AOE 1 | . 1 . Classes Destroyed 8 | . 6 2 Worker 1 | . 1 . Hauler 2 | . 2 . Watcher 2 | . 2 . Swarmer 6 | . 6 . Grunt 9 | . 9 . Demolisher 1 | . . 1 Subdweller 1 | . 1 . Assembled 2 | . . 2 Best Kill Streak 6 | . 6 3 Combat Bots Only 5 | . 5 3 Max Kills in Single Turn 2 | . 2 1 Gunslinging 1 | . 1 . Exploded 1 | . 1 . Melee . | . . . Uniques/NPCs Destroyed . | . . . Combat | -11 -10 -10 -------- Run | Yrd Mat Min Hostile Shots Fired 159 | . 112 47 Missed 43 | . 35 8 Hits 116 | . 77 39 Melee 9 | . . 9 Projectile 107 | . 77 30 AOE 6 | . . 6 Critical Strikes 1 | . 1 . Damage Taken 1261 | . 664 597 Core 256 | . 111 145 Absorbed by Shields . | . . . Redirected to Shielding 14 | . 2 12 Ignored by Resistances 372 | . 202 170 Regen/Repaired (Parts) 42 | . 42 . Core Remaining (%) 100 | 100 . . Volleys Fired 76 | . 64 12 Largest 2 | . 2 2 Hottest 95 | . 95 95 Shots Fired 137 | . 115 22 Gun 118 | . 106 12 Cannon 19 | . 9 10 Launcher . | . . . Special . | . . . Kinetic 76 | . 64 12 Thermal 61 | . 51 10 Explosive . | . . . Electromagnetic . | . . . Robot Hit Streak 13 | . 13 5 Robot Miss Streak 5 | . 2 5 Penetration Max . | . . . Secondary Targets 5 | . 5 . Max Gunslinging Chain 1 | . 1 . Shots Hit Robots 100 | . 88 12 Core Hits 38 | . 32 6 Critical Kills . | . . . Critical Parts Destroyed . | . . . Critical Strikes . | . . . Melee Attacks . | . . . Impact . | . . . Slashing . | . . . Piercing . | . . . Sneak Attacks . | . . . Combat Hostiles . | . . . Follow-up Attacks . | . . . Damage Inflicted 1755 | . 1523 232 Guns 1086 | . 969 117 Cannons 225 | . 110 115 Explosions 444 | . 444 . Melee . | . . . Ramming . | . . . Kinetic 721 | . 580 141 Thermal 590 | . 499 91 Explosive 444 | . 444 . Electromagnetic . | . . . Impact . | . . . Slashing . | . . . Piercing . | . . . Highest Corruption 4 | . . 4 Average Corruption 4 | . . 4 Corruption Purged . | . . . Corruption Blocked . | . . . Overload Shots . | . . . Overflow Damage . | . . . Projectiles . | . . . Explosions . | . . . Melee . | . . . Knockbacks 2 | . 1 1 Impact . | . . . Kinetic 2 | . 1 1 Secondary . | . . . Self-Inflicted Damage 56 | . 56 . Shots 1 | . 1 . Rammed . | . . . Targets Rammed . | . . . Kicked . | . . . Crushed . | . . . Highest Temperature 406 | . 204 406 Average Temperature 88 | . 67 177 Received Heat Transfer 382 | . 270 112 Effects 1 | . . 1 Interference 1 | . . 1 Siege Activations . | . . . Martial Activations . | . . . Shielding Activations . | . . . Robots Disrupted . | . . . Combat Hostiles . | . . . Robots Corrupted . | . . . Combat Hostiles . | . . . Parts Fried . | . . . Impact Corruptions . | . . . Robots Melted . | . . . Combat Hostiles . | . . . Parts Melted 2 | . 2 . Heat Transferred 1370 | . 1148 222 Parts Sabotaged . | . . . Parts Stolen . | . . . Parts Stripped . | . . . Power Chain Reactions . | . . . Alert | -11 -10 -10 ------- Run | Yrd Mat Min Maximum Alert Level 1 | . 1 . Low Security (%) 93 | 100 92 100 Level 1 6 | . 7 . Level 2 . | . . . Level 3 . | . . . Level 4 . | . . . Level 5 . | . . . High Security . | . . . Max Security . | . . . Peak Influence 230 | . 230 20 Initial . | . . . Average 67 | . 75 1 Influence Increases 505 | . 485 20 Destroy 0b10 Robot/C 320 | . 300 20 Destroy 0b10 Robot/NC 25 | . 25 . Destroy Leader 68 | . 68 . Successful Hack 28 | . 28 . Disable Machine 36 | . 36 . Destroy Structure 28 | . 28 . Influence Decreases 505 | . 485 20 Time Decay 490 | . 480 10 Lost Part 15 | . 5 10 Squads Dispatched 2 | . 2 . Investigation 2 | . 2 . Extermination . | . . . Reinforcement . | . . . Assault . | . . . Garrison . | . . . Intercept . | . . . Searches Triggered . | . . . Construction Impeded . | . . . Haulers Reinforced . | . . . Active Scanning Responses . | . . . Cargo Convoy Interrupts . | . . . Stealth | -11 -10 -10 --------- Run | Yrd Mat Min Distress Signals 1 | . 1 . Communications Jammed . | . . . Distress Signals . | . . . Times Spotted 38 | . 19 19 Peak Tracking Total 11 | . 4 11 Tactical Retreats 1 | . . 1 Traps | -11 -10 -10 ------- Run | Yrd Mat Min Traps Triggered 2 | . 2 . Indirectly . | . . . Trap Hack Attempts . | . . . Triggered . | . . . Disarmed . | . . . Reprogrammed . | . . . Reused . | . . . Traps Extracted . | . . . Installed . | . . . Triggered . | . . . Machines | -11 -10 -10 ---------- Run | Yrd Mat Min Machines Disabled 4 | . 4 . Max in Single Turn 2 | . 2 . Machines Repaired . | . . . Machines Dismantled . | . . . Machines Sabotaged . | . . . Overloaded Fab Kills . | . . . Hacking | -11 -10 -10 --------- Run | Yrd Mat Min Machines Accessed 6 | . 6 . Terminals 5 | . 5 . Fabricators . | . . . Repair Stations 1 | . 1 . Recycling Units . | . . . Scanalyzers . | . . . Garrison Access . | . . . Total Hacks 14 | . 14 . Successful 10 | . 10 . Failed 4 | . 4 . Catastrophic . | . . . Database Lockouts . | . . . Manual . | . . . Terminals 10 | . 10 . Fabricators . | . . . Repair Stations 4 | . 4 . Recycling Units . | . . . Scanalyzers . | . . . Garrison Access . | . . . Terminal Hacks 7 | . 7 . Prototype ID Bank 3 | . 3 . Branch Access Points 1 | . 1 . Hauler Manifests 1 | . 1 . Registered Components 1 | . 1 . Zone Layout 1 | . 1 . Fabricator Hacks . | . . . Repair Station Hacks 3 | . 3 . Scan Component 1 | . 1 . Repair 1 | . 1 . Refit 1 | . 1 . Recycling Unit Hacks . | . . . Scanalyzer . | . . . Garrison Access Hacks . | . . . Unauthorized Hacks . | . . . Terminals . | . . . Fabricators . | . . . Repair Stations . | . . . Recycling Units . | . . . Scanalyzers . | . . . Garrison Access . | . . . Data Cores Recovered . | . . . Used . | . . . Hacking Detections 4 | . 4 . Full Trace Events . | . . . Feedback Events . | . . . Feedback Blocked . | . . . Robot Schematics Acquired . | . . . Robots Built . | . . . Authchips . | . . . Time . | . . . Total Robot Build Rating . | . . . Part Schematics Acquired . | . . . Parts Built . | . . . Authchips . | . . . Time . | . . . Total Part Build Rating . | . . . Parts Repaired 1 | . 1 . Time 38 | . 38 . Parts Recycled . | . . . Recycled Matter . | . . . Retrieved Matter . | . . . Retrieved Components . | . . . Parts Scanalyzed . | . . . Part Schematics Acquired . | . . . Parts Damaged . | . . . Bothacking | -11 -10 -10 ------------ Run | Yrd Mat Min Used RIF Installer . | . . . Robots Hacked . | . . . Non-combat . | . . . Combat . | . . . Robot Hacks Applied . | . . . Relay Couplers Released . | . . . Fabnet Peak Effective % . | . . . Robots Rewired . | . . . Allies Hacked . | . . . Hacks Repelled . | . . . Allies | -11 -10 -10 -------- Run | Yrd Mat Min Total Allies . | . . . Largest Group . | . . . Highest-Rated Group . | . . . Highest-Rated Ally . | . . . Total Orders . | . . . Ally Attacks . | . . . Total Damage . | . . . Kills . | . . . Allies Corrupted . | . . . Allies Melted . | . . . Intel | -11 -10 -10 ------- Run | Yrd Mat Min Active Infowar (turns) . | . . . Robot Analysis Total . | . . . Derelict Logs Recovered . | . . . Drone Launches . | . . . Drone Recoveries . | . . . Exploration | -11 -10 -10 ------------- Run | Yrd Mat Min Turns Passed 1287 | 60 1155 72 Spaces Moved 594 | 37 538 19 Core 11 | 11 . . Treads 492 | 26 466 . Legs 91 | . 72 19 Wheels . | . . . Hover . | . . . Flight . | . . . Fastest Speed 50 | 50 160 190 Average Speed 164 | 127 166 190 Slowest Speed 240 | 160 240 190 Overloaded Moves . | . . . Propulsion Burnouts . | . . . Robots Hopped . | . . . Potential Cave-ins . | . . . Cave-ins Triggered . | . . . Exploration Rate (%) 34 | 4 88 12 Regions Visited 2 Branch Regions 1 Pre-discovered Areas . | . . . Known Exits Taken 1 | . 1 . Unknown Exits Taken 1 | 1 . . Scrap Searched . | . . . Spaces Dug . | . . . Terrain Destroyed 28 | . 28 . Melee . | . . . Projectile . | . . . AOE 28 | . 28 . Terrain Rammed . | . . . Walls Destroyed . | . . . Machines Disabled . | . . . Actions | -11 -10 -10 --------- Run | Yrd Mat Min Total 769 | 50 685 34 Wait 49 | . 49 . Move 592 | 36 537 19 Hop . | . . . Pick Up 24 | 8 16 . Fast Attach . | . . . Attach 12 | 6 4 2 Detach 1 | . 1 . Swap 6 | . 6 . Drop 9 | . 8 1 Fire 76 | . 64 12 Melee . | . . . Ram . | . . . Kick . | . . . Crush . | . . . Escape Stasis . | . . . Rewire . | . . . Trap . | . . . Miscellaneous . | . . . Route ------- -11/Scrapyard -10/Materials (discovered 5 exits: [*Mat x3] / *Min x2) -10/Mines History --------- Turn | Location | Event 30 | -11/Scrapyard | Discovered new exit (range 15) 61 | -11/Scrapyard | Entered Materials 183 | -10/Materials | Discovered new exit (range 11) 308 | -10/Materials | Build established: Mutant 349 | -10/Materials | Discovered new exit (range 16) 557 | -10/Materials | Identified exit to Mines 608 | -10/Materials | Discovered new exit (range 8) 861 | -10/Materials | Derelicts attacked the area 892 | -10/Materials | Discovered new exit (range 8) 1057 | -10/Materials | Repaired Lgt. Nuclear Core 1216 | -10/Materials | Entered Mines 1217 | -10/Mines | Assembled infested the area 1253 | -10/Mines | Core integrity fell below 50% 1284 | -10/Mines | Core integrity fell below 20% 1288 | -10/Mines | Destroyed by as-68014 with Assembled F-torch Last Messages --------------- Knocked back. U-05 Engineer lays Concrete. as-35953 destroyed. Backup Plating I destroyed. U-05 Engineer lays Concrete. U-05 Engineer builds a Wall. U-05 Engineer lays Concrete. The unstable cave ceiling collapses. U-05 Engineer lays Concrete. Aluminum Leg destroyed. Particle Gun destroyed. Lgt. Nuclear Core destroyed. System corrupted by crushing effect (+2). U-05 Engineer builds a Wall. Overheating: System interference. Lgt. Cannon temporarily disabled. Dropped Lgt. Cannon. Knocked back. U-05 Engineer lays Concrete. as-83923 destroyed. Map ----- +----------------------------------------------------+ | ???????????????????????????????????????? | | ???????????????????????????????????????? | | ???????????????????????????????????????? | | ???????????????????????????????????????? | | ???????????????????????????????????????? | | ???????????????????????????????????????? | | ???????????????????????????????????????? | | ???????????????????????????????????????? | | ???????????????????????????????????????? | | ???????????????????????????????????????? | | ???????????????????????????????????????? | | ???????????????????????????????????????? | | ???????????????????????????????????????? | | ???????????????????????????????????????? | | ???????????????????????????????????????? | | ???????????????????????????????????????? | | ???????????????????????????????????????? | | ???????????????????????????????????????? | | ???????????????????????????????????????? | | ???????????????????????????????????????? | | ???????????????????????????????????????? | | ???????###?????????????????????????????? | | ??????## #??#######???????????????????? | | ??????# ### ;##??????????????????? | | ??????# ##?????????????????? | | ?????## @ #?????????????????? | | ?????# aa % ##????????????????? | | ?????# ###??????????????? | | ?????# %a ##?????????????? | | ?????# % ##????????????? | | ?????## ###%% u # ### #?????? | | ??????## ### # % #????? | | ???????######### r u ???? | | ??????????# *r ## ???? | | ??????????# """ !%= ##### ?????? | | ??????????# """ =%####?????? ???????? | | ??????????# """ % ????????????????? | | ??????????# """ % ???????????????? | | ??????????# # ??????????????? | | ??????????####### ## ??????????????? | | ????????????????? % #? #?????????????? | | ????????????????? ##????????????????? | | ????????????????? ??????????????????? | | ????????????????? #???????????????????? | | ????????????????? ????????????????????? | | ????????????????? ????????????????????? | | ????????????????? ????????????????????? | | ????????????????? ????????????????????? | | ??????????????????#????????????????????? | | ???????????????????????????????????????? | +----------------------------------------------------+ Best States ------------- Heat Dissipation 25 Energy Generation 14 Energy Capacity 250 Matter Stores 300 Matter Capacity 300 Sight Range 16 Terrain Scan Density 10 Armor Coverage 80 Resistance: KI 20 Resistance: TH 20 Resistance: EX 20 Resistance: EM 20 Resistance: I 20 Resistance: S 20 Resistance: P 20 Core Shielding 20 Evasion (%) 50 Recoil Reduction 2 Offensive Hacking 10 Item Schematics ----------------- None Robot Schematics ------------------ None Fabricated ------------ Nothing Repaired ---------- Lgt. Nuclear Core | 16% | -10/Materials Alien Tech Used ----------------- None Achievements -------------- None Challenges ------------ None Game ------ Seed LightTargetingMultitool Manual? 0 Play Time 00:10:42 Cumulative 94.8 hours Start 2025.08.06 @ 07:03:09 End 2025.08.06 @ 07:12:33 Sessions 1 Manual Loads 0 Difficulty Adventurer Special Mode None Game No. 137 Rogue 13 Adventurer 124 Explorer 0 Win Type - Total 0 Types 0/0/0/0/0/0/0/0/0/0 Lore% 68 Gallery% 61 Achievement% 47 Wizard Run 0 Options --------- Layout 1 ASCII 0 Keyboard 0 Movement Mouse Keybinds 0 Fullscreen 1 Font 32/SmallcapsGlow Map View 50x35 Zoom Use 0% Tactical HUD 0 Map Filters NONE Filters NONE Steam 1 RUN: 95d4fb2d-5edb-4024-ac5a-48dde723b03a